bitfinex/quotes_BTCUSD_20241226
["timestamp","ask_amount","ask_price","bid_price","bid_amount"]
[1735183158679,0.023,98714.0,98677.0,0.162143]
[1735183158894,0.023,98712.0,98680.0,0.10640308]
[1735183159097,0.162083,98715.0,98680.0,0.10640308]
[1735183159098,0.023,98706.0,98680.0,0.10640308]
[1735183159304,0.32546555,98705.0,98687.0,0.162127]
[1735183159505,0.162102,98703.0,98687.0,0.162127]
[1735183159720,0.00126655,98703.0,98680.0,0.10640308]
[1735183159860,0.00142259,98703.0,98692.0,0.16212]
[1735183161091,0.00542259,98703.0,98692.0,0.16212]
[1735183161303,0.00742259,98703.0,98692.0,0.16212]
[1735183161738,0.00742259,98703.0,98697.0,0.162112]
[1735183161948,0.00615604,98703.0,98697.0,0.162112]
[1735183163425,0.00615604,98703.0,98702.0,0.162104]
[1735183163633,0.00415604,98703.0,98702.0,0.162104]
[1735183163860,0.00215604,98703.0,98690.0,0.10640308]
[1735183164067,0.00215604,98703.0,98698.0,0.162109]
[1735183164241,0.00615604,98703.0,98692.0,0.0001714]
[1735183164446,0.00615604,98703.0,98692.0,0.1622914]
[1735183164883,0.00015604,98703.0,98692.0,0.1622914]
[1735183165296,0.00615604,98703.0,98692.0,0.1622914]
[1735183165430,0.00215604,98703.0,98692.0,0.1622914]
[1735183165853,0.00215604,98703.0,98692.0,0.3244114]
[1735183166433,0.00015604,98703.0,98692.0,0.3244114]
[1735183166642,0.00415604,98703.0,98692.0,0.3244114]
[1735183167009,0.00615604,98703.0,98692.0,0.0001714]
[1735183167225,0.162112,98697.0,98692.0,0.0001714]
[1735183167437,0.023,98694.0,98692.0,0.0001714]
[1735183167652,0.00126663,98693.0,98692.0,0.0001714]
[1735183168295,0.02426663,98700.0,98692.0,0.0001714]
[1735183168503,0.001,98697.0,98692.0,0.0001714]
[1735183168702,0.023,98700.0,98692.0,0.0001714]
[1735183169029,0.001,98697.0,98692.0,0.0001714]
[1735183169388,0.00226656,98697.0,98692.0,0.0001714]
[1735183169756,0.32649256,98697.0,98692.0,0.0001714]
[1735183170191,0.16337956,98697.0,98692.0,0.0001714]
[1735183170445,0.32649256,98697.0,98692.0,0.0001714]
[1735183171024,0.023,98696.0,98692.0,0.0001714]
[1735183171223,0.023,98694.0,98692.0,0.0001714]
[1735183171505,0.00126661,98693.0,98692.0,0.0001714]
[1735183171877,0.02426661,98693.0,98692.0,0.0001714]
[1735183172514,0.00126661,98693.0,98692.0,0.0001714]
[1735183172710,0.18638461,98693.0,98692.0,0.0001714]
[1735183173598,0.02426661,98693.0,98692.0,0.0001714]
[1735183173794,0.00126661,98693.0,98692.0,0.0001714]
[1735183173924,0.00142249,98703.0,98692.0,0.0011714]
[1735183174139,0.02426649,98702.0,98692.0,0.0011714]
[1735183174341,0.162105,98701.0,98692.0,0.0011714]
[1735183174742,0.162105,98701.0,98692.0,0.0001714]
[1735183175169,0.162113,98697.0,98692.0,0.0001714]
[1735183176641,0.324226,98697.0,98692.0,0.0001714]
[1735183176899,0.162113,98697.0,98692.0,0.0001714]
[1735183177109,0.0242665,98696.0,98692.0,0.0001714]
[1735183179125,0.023,98694.0,98692.0,0.0001714]
[1735183179331,0.02426658,98694.0,98692.0,0.0001714]
[1735183180493,0.02426658,98694.0,98692.0,0.0011714]
[1735183180494,0.16338458,98693.0,98692.0,0.0011714]
[1735183181115,0.00126658,98693.0,98692.0,0.0011714]
[1735183181328,0.02426658,98694.0,98692.0,0.0001714]
[1735183182861,0.02426658,98694.0,98692.0,0.0011714]
[1735183183492,0.02426658,98694.0,98692.0,0.0001714]
[1735183183719,0.02426658,98694.0,98692.0,0.0011714]
[1735183184471,8.57e-05,98701.0,98692.0,0.1632904]
[1735183184887,8.57e-05,98701.0,98692.0,0.0011714]
[1735183185485,0.162107,98700.0,98692.0,0.0011714]
[1735183185702,0.0013522,98701.0,98692.0,0.0011714]
[1735183186128,0.0033522,98701.0,98692.0,0.0011714]
[1735183186331,8.57e-05,98701.0,98692.0,0.0011714]
[1735183186549,8.57e-05,98701.0,98692.0,0.0001714]
[1735183186758,0.002,98700.0,98692.0,0.0001714]
[1735183186969,0.00235219,98701.0,98692.0,0.0001714]
[1735183187159,0.00435219,98701.0,98692.0,0.0001714]
[1735183187583,0.00335219,98701.0,98692.0,0.0001714]
[1735183187830,0.001,98700.0,98692.0,0.0001714]
[1735183188140,0.162109,98699.0,98692.0,0.0001714]
[1735183188559,0.16211,98698.0,98692.0,0.0001714]
[1735183189706,0.16311,98698.0,98692.0,0.0001714]
[1735183189955,0.001,98698.0,98692.0,0.0001714]
[1735183192082,0.162112,98697.0,98692.0,0.0001714]
[1735183192418,0.001,98698.0,98692.0,0.0001714]
[1735183193144,0.02426649,98700.0,98692.0,0.0001714]
[1735183193338,0.001,98697.0,98692.0,0.0001714]
[1735183193797,0.162109,98699.0,98692.0,0.0001714]
[1735183194005,0.001,98698.0,98692.0,0.0001714]
[1735183195150,0.023,98700.0,98692.0,0.0001714]
[1735183195570,0.001,98697.0,98692.0,0.0001714]
[1735183195811,0.023,98700.0,98692.0,0.0001714]
[1735183196217,0.001,98698.0,98692.0,0.0001714]
[1735183196419,0.023,98700.0,98692.0,0.0001714]
[1735183196623,0.001,98697.0,98692.0,0.0001714]
[1735183197164,0.023,98700.0,98692.0,0.0001714]
[1735183197584,0.024,98700.0,98692.0,0.0001714]
[1735183198556,0.026,98700.0,98692.0,0.0001714]
[1735183199488,0.026,98700.0,98693.0,0.162118]
[1735183199855,0.026,98700.0,98692.0,0.0001714]
[1735183200282,0.025,98700.0,98692.0,0.0001714]
[1735183200657,0.003,98700.0,98692.0,0.3244104]
[1735183200865,0.003,98700.0,98692.0,0.1622904]
[1735183201069,0.002,98700.0,98692.0,0.1622904]
[1735183201388,0.002,98700.0,98696.0,0.162113]
[1735183201593,0.003,98700.0,98697.0,0.0769]
[1735183201968,0.001,98700.0,98698.0,0.16211]
[1735183202514,0.003,98700.0,98698.0,0.16211]
[1735183202723,8.57e-05,98701.0,98698.0,0.16211]
[1735183202891,0.001,98700.0,98698.0,0.32422]
[1735183203309,8.57e-05,98701.0,98698.0,0.32422]
[1735183203510,8.57e-05,98701.0,98698.0,0.42820632]
[1735183203716,8.57e-05,98701.0,98698.0,0.42920632]
[1735183203912,8.57e-05,98701.0,98700.0,0.162107]
[1735183204117,8.57e-05,98701.0,98700.0,0.31419332]
[1735183204552,8.57e-05,98701.0,98700.0,0.49109332]
[1735183205978,8.57e-05,98701.0,98700.0,0.51261315]
[1735183206365,0.0010857,98701.0,98700.0,0.51161315]
[1735183206578,0.0010857,98701.0,98700.0,0.64712746]
[1735183206755,0.0010857,98701.0,98700.0,0.64912746]
[1735183207036,0.0010857,98701.0,98700.0,0.65940078]
[1735183207237,0.0010857,98701.0,98700.0,0.53888095]
[1735183207599,0.0010857,98701.0,98700.0,0.40336664]
[1735183211170,0.00126613,98729.0,98725.0,0.162066]
[1735183211371,0.0001716,98730.0,98725.0,0.162066]
[1735183211372,0.0001716,98730.0,98725.0,0.34455232]
[1735183212308,0.0020857,98726.0,98725.0,0.34655232]
[1735183212734,8.57e-05,98726.0,98725.0,0.34655232]
[1735183213615,0.0010857,98726.0,98725.0,0.34655232]
[1735183213767,8.57e-05,98726.0,98725.0,0.35467749]
[1735183214871,8.57e-05,98726.0,98725.0,0.35867749]
[1735183215077,0.0010857,98726.0,98725.0,0.36667749]
[1735183220711,0.0010857,98726.0,98725.0,0.20461149]
[1735183223094,0.0010857,98726.0,98725.0,0.45461149]
[1735183223863,0.0010857,98726.0,98725.0,0.55461149]
[1735183224079,8.58e-05,98742.0,98740.0,0.2267]
[1735183224263,0.00060571,98741.0,98740.0,0.48068632]
[1735183224725,0.00060571,98741.0,98740.0,0.50094123]
[1735183225145,0.00060571,98741.0,98740.0,0.48068632]
[1735183225708,0.00060571,98741.0,98740.0,0.50094123]
[1735183226342,0.00160571,98741.0,98740.0,0.50794123]
[1735183226546,0.00260571,98741.0,98740.0,0.51494123]
[1735183226952,0.00160571,98741.0,98740.0,0.48768632]
[1735183227126,0.00160571,98741.0,98740.0,0.38768632]
[1735183227769,0.00060571,98741.0,98740.0,0.38068632]
[1735183227972,0.00060571,98741.0,98740.0,0.38768632]
[1735183228173,0.00160571,98741.0,98740.0,0.38768632]
[1735183228386,0.00160571,98741.0,98740.0,0.41834102]
[1735183228600,0.00160571,98741.0,98740.0,0.42034102]
[1735183228807,0.00160571,98741.0,98740.0,0.41834102]
[1735183229008,0.00160571,98741.0,98740.0,0.42734102]
[1735183229182,0.00260571,98741.0,98740.0,0.42734102]
[1735183230409,0.00160571,98741.0,98740.0,0.41834102]
[1735183231401,0.00060571,98741.0,98740.0,0.41134102]
[1735183231610,0.00160571,98741.0,98740.0,0.42034102]
[1735183232009,0.00160571,98741.0,98740.0,0.42726294]
[1735183232240,0.00160571,98741.0,98740.0,0.38226294]
[1735183232418,0.00160571,98741.0,98740.0,0.36174062]
[1735183232623,0.00160571,98741.0,98740.0,0.12290824]
[1735183232831,0.00160571,98741.0,98740.0,0.01892192]
[1735183235095,0.00160571,98741.0,98740.0,0.12290824]
[1735183240011,0.00160571,98741.0,98740.0,0.01892192]
[1735183242274,0.00160571,98741.0,98740.0,0.12290824]
[1735183244122,0.00160571,98741.0,98740.0,0.01892192]
[1735183245002,0.00160571,98741.0,98740.0,0.12290824]
[1735183245203,0.00160571,98741.0,98740.0,0.01892192]
[1735183245913,0.00160571,98741.0,98740.0,0.12290824]
[1735183254500,0.00160571,98741.0,98740.0,0.01892192]
[1735183255573,0.08240571,98741.0,98740.0,0.01892192]
[1735183255784,0.10540571,98741.0,98740.0,0.01892192]
[1735183256008,0.10540571,98741.0,98740.0,0.01]
[1735183256617,0.023,98740.0,98730.0,0.0001714]
[1735183256831,0.02426597,98740.0,98730.0,0.0001714]
[1735183257244,0.02426597,98740.0,98731.0,0.00777585]
[1735183257652,0.00126597,98739.0,98731.0,0.00777585]
[1735183260176,0.00126599,98740.0,98731.0,0.00777585]
[1735183260370,0.00126599,98740.0,98731.0,0.00877585]
[1735183260371,0.02426599,98740.0,98731.0,0.00877585]
[1735183261091,0.02426599,98740.0,98732.0,0.162054]
[1735183261531,0.02426599,98740.0,98733.0,0.00777213]
[1735183270893,0.02426599,98740.0,98734.0,0.162051]
[1735183271313,0.02426599,98740.0,98735.0,0.00056185]
[1735183274092,0.023,98734.0,98730.0,0.0001714]
[1735183274271,0.21374,98731.0,98730.0,0.0001714]
[1735183274515,0.31772632,98731.0,98730.0,0.0001714]
[1735183274721,0.47978232,98731.0,98730.0,0.0001714]
[1735183276011,0.48378232,98731.0,98730.0,0.0001714]
[1735183276244,0.81979916,98731.0,98730.0,0.0001714]
[1735183276447,0.82579916,98731.0,98730.0,0.0011714]
[1735183276630,0.82179916,98731.0,98730.0,0.0001714]
[1735183276836,0.91085916,98731.0,98730.0,0.0001714]
[1735183277415,0.57484232,98731.0,98730.0,0.0001714]
[1735183277628,0.57784232,98731.0,98730.0,0.0001714]
[1735183278025,0.58384232,98731.0,98730.0,0.0011714]
[1735183278900,0.67427663,98731.0,98730.0,0.0011714]
[1735183280019,0.58384232,98731.0,98730.0,0.0011714]
[1735183283048,0.015,98731.0,98730.0,0.0011714]
[1735183283463,0.11898632,98731.0,98730.0,0.0011714]
[1735183283673,0.12025259,98731.0,98730.0,0.0011714]
[1735183284303,0.015,98731.0,98730.0,0.0011714]
[1735183284516,0.038,98731.0,98730.0,0.0011714]
[1735183285149,0.0380857,98731.0,98730.0,0.00781967]
[1735183285573,0.0120857,98731.0,98730.0,0.00781967]
[1735183285986,8.57e-05,98731.0,98730.0,0.00681967]
[1735183286701,0.0020857,98731.0,98730.0,0.00681967]
[1735183286998,0.0050857,98731.0,98730.0,0.00681967]
[1735183287382,0.0020857,98731.0,98730.0,0.00681967]
[1735183287929,8.57e-05,98731.0,98730.0,0.00681967]
[1735183291441,8.57e-05,98731.0,98730.0,0.00781967]
[1735183291591,8.57e-05,98731.0,98730.0,0.00981967]
[1735183295243,8.57e-05,98731.0,98730.0,0.11380599]
[1735183295449,8.57e-05,98731.0,98730.0,0.19160599]
[1735183296495,8.57e-05,98731.0,98730.0,0.23770599]
[1735183296678,8.57e-05,98731.0,98730.0,0.25791798]
[1735183297223,8.57e-05,98731.0,98730.0,0.25691798]
[1735183297628,8.57e-05,98731.0,98730.0,0.25891798]
[1735183297873,8.57e-05,98731.0,98730.0,0.25691798]
[1735183298075,8.57e-05,98731.0,98730.0,0.35891798]
[1735183298301,8.57e-05,98731.0,98730.0,0.35491798]
[1735183298496,8.57e-05,98731.0,98730.0,0.35791798]
[1735183298696,8.57e-05,98731.0,98730.0,0.26491798]
[1735183298697,0.0010857,98731.0,98730.0,0.26491798]
[1735183298962,0.0010857,98731.0,98730.0,0.23770599]
[1735183298963,8.57e-05,98731.0,98730.0,0.23770599]
[1735183299374,0.0010857,98731.0,98730.0,0.24470599]
[1735183300042,0.0010857,98731.0,98730.0,0.24170599]
[1735183300191,0.0010857,98731.0,98730.0,0.24470599]
[1735183307418,0.0010857,98731.0,98730.0,0.49470599]
[1735183308574,0.0010857,98731.0,98730.0,0.39470599]
[1735183312984,0.00060571,98741.0,98740.0,0.291141]
[1735183313116,0.00060571,98741.0,98740.0,0.39512732]
[1735183313117,1e-08,98741.0,98740.0,0.39512732]
[1735183313321,1e-08,98741.0,98740.0,0.40162306]
[1735183313524,1e-08,98741.0,98740.0,0.55162306]
[1735183314764,1e-08,98741.0,98740.0,0.56062306]
[1735183315361,1e-08,98741.0,98740.0,0.56562306]
[1735183315789,1e-08,98741.0,98740.0,0.56062306]
[1735183316192,1e-08,98741.0,98740.0,0.56462306]
[1735183317710,1e-08,98741.0,98740.0,0.57484575]
[1735183320895,8.571e-05,98741.0,98740.0,0.57484575]
[1735183325342,8.571e-05,98741.0,98740.0,0.44574575]
[1735183329363,8.571e-05,98741.0,98740.0,0.19175943]
[1735183329597,8.571e-05,98741.0,98740.0,0.01949574]
[1735183330548,8.571e-05,98741.0,98740.0,0.12348206]
[1735183330752,8.571e-05,98741.0,98740.0,0.11448206]
[1735183331003,8.571e-05,98741.0,98740.0,0.11648206]
[1735183331452,8.571e-05,98741.0,98740.0,0.11248206]
[1735183331657,8.571e-05,98741.0,98740.0,0.11348206]
[1735183331863,8.571e-05,98741.0,98740.0,0.00949574]
[1735183332090,8.571e-05,98741.0,98740.0,0.00966714]
[1735183332253,8.571e-05,98741.0,98740.0,0.00866714]
[1735183332478,8.571e-05,98741.0,98740.0,0.19335346]
[1735183332681,8.571e-05,98741.0,98740.0,0.39360446]
[1735183333869,8.571e-05,98741.0,98740.0,0.39160446]
[1735183334039,8.571e-05,98741.0,98740.0,0.39660446]
[1735183334268,8.571e-05,98741.0,98740.0,0.61460446]
[1735183334477,8.571e-05,98741.0,98740.0,0.61360446]
[1735183334628,8.571e-05,98741.0,98740.0,0.62260446]
[1735183334831,8.571e-05,98741.0,98740.0,0.61560446]
[1735183335218,8.571e-05,98741.0,98740.0,0.61360446]
[1735183335418,3.1e-07,98745.0,98744.0,0.2]
[1735183335626,8.57e-05,98762.0,98756.0,0.25]
[1735183335848,0.00024167,98762.0,98760.0,0.15]
[1735183336051,0.00024167,98762.0,98761.0,0.10398632]
[1735183337494,0.00024167,98762.0,98761.0,0.13538166]
[1735183337673,0.00024167,98762.0,98761.0,0.29738866]
[1735183338724,0.00024167,98762.0,98761.0,0.27399332]
[1735183338940,0.00024167,98762.0,98761.0,0.29380282]
[1735183339357,0.00024167,98762.0,98761.0,0.30387258]
[1735183339583,0.00024167,98762.0,98761.0,0.3043811]
[1735183341871,0.00024167,98762.0,98761.0,0.2845716]
[1735183342634,0.00024167,98762.0,98761.0,0.2825716]
[1735183342816,0.00024167,98762.0,98761.0,0.2765716]
[1735183343248,0.00024167,98762.0,98761.0,0.2825716]
[1735183343453,0.00024167,98762.0,98761.0,0.2765716]
[1735183343653,0.00024167,98762.0,98761.0,0.2785716]
[1735183343856,0.00024167,98762.0,98761.0,0.2805716]
[1735183344519,0.00024167,98762.0,98761.0,0.2785716]
[1735183344741,0.00024167,98762.0,98761.0,0.2795716]
[1735183345146,0.00024167,98762.0,98761.0,0.2785716]
[1735183345587,0.00024167,98762.0,98761.0,0.2805716]
[1735183346032,0.00024167,98762.0,98761.0,0.2785716]
[1735183346233,0.00024167,98762.0,98761.0,0.2865716]
[1735183346633,0.00024167,98762.0,98761.0,0.2785716]
[1735183347160,0.00024167,98762.0,98761.0,0.2815716]
[1735183347362,0.00024167,98762.0,98761.0,0.2835716]
[1735183347826,0.00024167,98762.0,98761.0,0.2765716]
[1735183348037,0.00024167,98762.0,98761.0,0.2835716]
[1735183348358,0.00024167,98762.0,98761.0,0.2815716]
[1735183348767,0.00024167,98762.0,98761.0,0.2835716]
[1735183349167,0.00024167,98762.0,98761.0,0.2785716]
[1735183349581,0.00024167,98762.0,98761.0,0.28844662]
[1735183349786,0.00024167,98762.0,98761.0,0.28444662]
[1735183349992,0.00024167,98762.0,98761.0,0.28744662]
[1735183350420,0.00024167,98762.0,98761.0,0.28944662]
[1735183351102,0.00024167,98762.0,98761.0,0.43944662]
[1735183352359,6.7e-07,98762.0,98761.0,0.78864662]
[1735183353129,6.7e-07,98762.0,98761.0,0.81629532]
[1735183353601,8.57e-05,98779.0,98778.0,0.1]
[1735183353798,8.57e-05,98779.0,98778.0,0.39908632]
[1735183354001,8.57e-05,98779.0,98778.0,0.40535183]
[1735183354234,8.57e-05,98779.0,98778.0,0.43300053]
[1735183354880,8.57e-05,98779.0,98778.0,0.75744886]
[1735183355233,7e-07,98779.0,98778.0,0.96154886]
[1735183355439,0.0001857,98789.0,98788.0,0.493062]
[1735183355641,0.0001857,98789.0,98788.0,0.62469702]
[1735183356752,0.0001857,98789.0,98788.0,0.41594832]
[1735183357182,0.0001857,98789.0,98788.0,0.42094832]
[1735183357617,0.0001857,98789.0,98788.0,0.75439665]
[1735183357834,0.0001857,98789.0,98788.0,0.60484982]
[1735183358259,0.0001857,98789.0,98788.0,0.5008635]
[1735183358747,0.0001857,98789.0,98788.0,0.4918635]
[1735183359121,0.0001857,98789.0,98788.0,0.17641517]
[1735183359322,0.0001857,98789.0,98788.0,0.16741517]
[1735183359928,0.0001857,98789.0,98788.0,0.16941517]
[1735183360548,0.0001857,98789.0,98788.0,0.16741517]
[1735183360678,0.0001857,98789.0,98788.0,0.00645317]
[1735183361132,0.0001857,98789.0,98788.0,0.006]
[1735183361526,0.0001857,98789.0,98788.0,0.01014577]
[1735183361755,0.0001857,98789.0,98788.0,0.00514577]
[1735183362170,0.0001857,98789.0,98788.0,0.00914577]
[1735183362377,0.0001857,98789.0,98788.0,0.00514577]
[1735183362625,0.0001857,98789.0,98779.0,0.161977]
[1735183363047,0.0001857,98789.0,98788.0,0.00514577]
[1735183363259,0.0001857,98789.0,98779.0,0.161977]
[1735183363432,0.0011857,98789.0,98788.0,0.00514577]
[1735183363645,0.0011857,98789.0,98779.0,0.161977]
[1735183363850,0.0001857,98789.0,98788.0,0.00514577]
[1735183364167,0.0011857,98789.0,98779.0,0.163977]
[1735183364574,0.0011857,98789.0,98781.0,0.161974]
[1735183364810,0.0001857,98789.0,98781.0,0.161974]
[1735183365020,0.0011857,98789.0,98781.0,0.161974]
[1735183365233,0.0011857,98789.0,98782.0,0.00046547]
[1735183366325,0.0001857,98789.0,98782.0,0.00046547]
[1735183366537,0.0011857,98789.0,98782.0,0.00046547]
[1735183366739,0.0752,98788.0,98782.0,0.00046547]
[1735183369597,0.0762,98788.0,98782.0,0.00046547]
[1735183370001,0.0752,98788.0,98783.0,0.161971]
[1735183370435,0.0762,98788.0,98784.0,0.00046137]
[1735183370821,0.0752,98788.0,98784.0,0.00046137]
[1735183371995,0.0752,98788.0,98779.0,0.161977]
[1735183371996,0.0752,98788.0,98785.0,0.00519839]
[1735183373270,0.0752,98788.0,98785.0,0.00619839]
[1735183374158,0.16322933,98787.0,98785.0,0.00619839]
[1735183374572,0.16322933,98787.0,98785.0,0.001]
[1735183375194,0.00126533,98787.0,98785.0,0.001]
[1735183375374,0.00126533,98787.0,98778.0,0.161978]
[1735183375775,0.00326533,98787.0,98779.0,0.00520954]
[1735183375932,0.00226533,98787.0,98779.0,0.00520954]
[1735183376129,0.00126533,98787.0,98779.0,0.00520954]
[1735183376355,0.00226533,98787.0,98779.0,0.00520954]
[1735183376553,0.00426533,98787.0,98779.0,0.00520954]
[1735183377004,0.00326533,98787.0,98779.0,0.00520954]
[1735183377140,0.00126533,98787.0,98779.0,0.00520954]
[1735183377337,0.00226533,98787.0,98779.0,0.00520954]
[1735183378586,0.00326533,98787.0,98779.0,0.00520954]
[1735183380032,0.00326533,98787.0,98779.0,0.00538094]
[1735183380331,0.00326533,98787.0,98779.0,0.16735694]
[1735183383307,0.00326533,98787.0,98779.0,0.00538094]
[1735183383308,0.161967,98785.0,98779.0,0.00538094]
[1735183383435,0.00126546,98784.0,98779.0,0.0001714]
[1735183384270,0.16323446,98784.0,98779.0,0.0001714]
[1735183386080,0.16623446,98784.0,98779.0,0.0001714]
[1735183386476,0.16423446,98784.0,98779.0,0.0001714]
[1735183386676,0.00326546,98784.0,98779.0,0.0001714]
[1735183386876,0.002,98784.0,98780.0,0.00527108]
[1735183387780,0.004,98784.0,98780.0,0.00527108]
[1735183387938,0.002,98784.0,98780.0,0.00527108]
[1735183388259,0.001,98784.0,98780.0,0.00527108]
[1735183388700,0.003,98784.0,98780.0,0.00527108]
[1735183388863,0.002,98784.0,98780.0,0.00527108]
[1735183389033,0.001,98784.0,98780.0,0.00527108]
[1735183389234,0.161966,98787.0,98780.0,0.00527108]
[1735183389459,0.002,98784.0,98780.0,0.00527108]
[1735183389667,0.003,98784.0,98780.0,0.00527108]
[1735183390931,0.001,98784.0,98780.0,0.00527108]
[1735183391140,0.003,98784.0,98780.0,0.00527108]
[1735183391565,0.00145107,98789.0,98780.0,0.00527108]
[1735183391772,0.001,98784.0,98780.0,0.00527108]
[1735183392132,0.002,98784.0,98780.0,0.00527108]
[1735183392345,0.003,98784.0,98780.0,0.00527108]
[1735183392497,0.001,98784.0,98780.0,0.00527108]
[1735183393913,0.161967,98786.0,98780.0,0.00527108]
[1735183394314,0.001,98784.0,98780.0,0.00527108]
[1735183394568,0.161967,98786.0,98780.0,0.00527108]
[1735183394919,0.002,98784.0,98780.0,0.00527108]
[1735183395155,0.002,98784.0,98780.0,0.16724708]
[1735183395351,0.001,98784.0,98781.0,0.10398632]
[1735183395558,0.001,98784.0,98782.0,0.0789]
[1735183395760,0.002,98786.0,98784.0,0.161969]
[1735183395945,0.003,98786.0,98785.0,0.10398632]
[1735183396147,0.001,98786.0,98785.0,0.10398632]
[1735183396350,0.001,98786.0,98785.0,0.23148632]
[1735183396793,0.001,98786.0,98785.0,0.38148632]
[1735183397189,8.57e-05,98787.0,98786.0,0.390866]
[1735183397365,8.57e-05,98787.0,98786.0,0.49485232]
[1735183398709,8.57e-05,98787.0,98786.0,0.50785232]
[1735183398922,8.57e-05,98787.0,98786.0,0.49885232]
[1735183399250,8.57e-05,98787.0,98786.0,0.49485232]
[1735183399431,8.57e-05,98787.0,98786.0,0.49530959]
[1735183399581,8.57e-05,98787.0,98786.0,0.49930959]
[1735183399791,8.57e-05,98787.0,98786.0,0.82410277]
[1735183399988,8.57e-05,98787.0,98786.0,0.87270277]
[1735183400430,8.57e-05,98787.0,98786.0,0.88170277]
[1735183404950,8.57e-05,98787.0,98786.0,1.01792763]
[1735183406380,8.57e-05,98787.0,98786.0,0.55690959]
[1735183409613,8.57e-05,98787.0,98786.0,0.56160601]
[1735183412886,8.57e-05,98787.0,98786.0,0.66160601]
[1735183415745,8.57e-05,98787.0,98786.0,0.56160601]
[1735183425128,8.57e-05,98787.0,98786.0,0.43410601]
[1735183427123,8.57e-05,98787.0,98786.0,0.28410601]
[1735183427545,8.57e-05,98787.0,98786.0,0.28010601]
[1735183427764,8.57e-05,98787.0,98786.0,0.27510601]
[1735183427967,8.57e-05,98787.0,98786.0,0.28410601]
[1735183428435,8.57e-05,98787.0,98786.0,0.27510601]
[1735183428628,8.57e-05,98787.0,98786.0,0.17811969]
[1735183429217,8.57e-05,98787.0,98786.0,0.17411969]
[1735183429547,8.57e-05,98787.0,98786.0,0.17711969]
[1735183430160,8.57e-05,98787.0,98786.0,0.01515369]
[1735183430787,8.57e-05,98787.0,98786.0,0.01]
[1735183433024,8.57e-05,98787.0,98786.0,0.01518038]
[1735183433343,8.57e-05,98787.0,98786.0,0.01218038]
[1735183433542,8.57e-05,98787.0,98786.0,0.01418038]
[1735183434038,8.57e-05,98787.0,98786.0,0.01218038]
[1735183434272,8.57e-05,98787.0,98786.0,0.00518038]
[1735183434485,8.57e-05,98787.0,98786.0,0.00718038]
[1735183434742,8.57e-05,98787.0,98786.0,0.00618038]
[1735183435103,8.57e-05,98787.0,98786.0,0.00918038]
[1735183449290,8.57e-05,98787.0,98786.0,0.1131667]
[1735183449918,8.57e-05,98787.0,98786.0,0.1892667]
[1735183450131,8.57e-05,98787.0,98786.0,0.20966908]
[1735183453073,8.57e-05,98787.0,98786.0,0.1131667]
[1735183455451,8.57e-05,98787.0,98786.0,0.00918038]
[1735183456602,8.57e-05,98787.0,98786.0,0.004]
[1735183457442,8.57e-05,98787.0,98786.0,0.00445727]
[1735183458512,8.57e-05,98787.0,98786.0,0.30454359]
[1735183458940,8.57e-05,98787.0,98786.0,0.324838]
[1735183459354,8.57e-05,98787.0,98786.0,0.321838]
[1735183459596,8.57e-05,98787.0,98786.0,0.320838]
[1735183459800,8.57e-05,98787.0,98786.0,0.324838]
[1735183460398,8.57e-05,98787.0,98786.0,0.320838]
[1735183460818,8.57e-05,98787.0,98786.0,0.328838]
[1735183461244,8.57e-05,98787.0,98786.0,0.326838]
[1735183462779,8.57e-05,98787.0,98786.0,0.328838]
[1735183463337,8.57e-05,98787.0,98786.0,0.404638]
[1735183465413,8.57e-05,98787.0,98786.0,0.282738]
[1735183465840,8.57e-05,98787.0,98786.0,0.11244359]
[1735183466251,0.0797857,98787.0,98786.0,0.00845727]
[1735183466454,0.0797857,98787.0,98786.0,0.008]
[1735183467069,0.0797857,98787.0,98782.0,0.161971]
[1735183467273,0.0797857,98787.0,98786.0,0.002]
[1735183467453,0.0797857,98787.0,98786.0,0.008]
[1735183467636,0.0797857,98787.0,98786.0,0.006]
[1735183468037,0.0797857,98787.0,98786.0,0.007]
[1735183468601,0.0797857,98787.0,98786.0,0.001]
[1735183469243,0.0797857,98787.0,98786.0,0.004]
[1735183469656,0.0797857,98787.0,98782.0,0.161971]
[1735183469855,0.0797857,98787.0,98786.0,0.001]
[1735183470249,0.0797857,98787.0,98782.0,0.161971]
[1735183470452,0.0797857,98787.0,98786.0,0.001]
[1735183472847,0.0797857,98787.0,98782.0,0.323943]
[1735183473032,8.57e-05,98787.0,98786.0,0.001]
[1735183474948,8.57e-05,98787.0,98782.0,0.323943]
[1735183475104,8.57e-05,98787.0,98786.0,0.001]
[1735183475302,8.57e-05,98787.0,98784.0,0.323938]
[1735183475508,8.57e-05,98787.0,98784.0,0.42792432]
[1735183475810,8.57e-05,98787.0,98786.0,0.001]
[1735183476574,8.57e-05,98787.0,98784.0,0.42792432]
[1735183476700,8.57e-05,98787.0,98784.0,0.42992432]
[1735183477745,8.57e-05,98787.0,98784.0,0.43092432]
[1735183477946,8.57e-05,98787.0,98784.0,0.42892432]
[1735183478882,8.57e-05,98787.0,98784.0,0.43192432]
[1735183479745,0.08266658,98805.0,98784.0,0.26995532]
[1735183479925,0.08282249,98805.0,98793.0,0.161953]
[1735183481059,0.08482249,98805.0,98793.0,0.161953]
[1735183481493,0.08282249,98805.0,98793.0,0.161953]
[1735183482871,0.08482249,98805.0,98793.0,0.161953]
[1735183483242,0.08282249,98805.0,98793.0,0.161953]
[1735183483463,0.08482249,98805.0,98793.0,0.161953]
[1735183483676,0.161936,98804.0,98793.0,0.161953]
[1735183483877,0.00116658,98803.0,98793.0,0.161953]
[1735183485547,0.00116658,98803.0,98793.0,0.17212572]
[1735183486711,0.00116658,98802.0,98793.0,0.17212572]
[1735183487396,0.00116658,98802.0,98790.0,0.161959]
[1735183487957,0.00116658,98801.0,98790.0,0.161959]
[1735183488161,0.00116658,98804.0,98790.0,0.161959]
[1735183489096,0.001,98802.0,98790.0,0.161959]
[1735183489293,0.00116658,98801.0,98790.0,0.161959]
[1735183489718,0.161938,98803.0,98790.0,0.161959]
[1735183489903,0.00116658,98802.0,98790.0,0.161959]
[1735183491799,0.00116658,98802.0,98790.0,0.323918]
[1735183491975,0.00116658,98801.0,98790.0,0.161959]
[1735183492178,0.161941,98802.0,98790.0,0.161959]
[1735183492376,0.00116658,98801.0,98790.0,0.161959]
[1735183493198,0.00216658,98801.0,98790.0,0.161959]
[1735183496143,0.00216658,98801.0,98789.0,0.01010997]
[1735183496322,0.00216658,98801.0,98789.0,0.17206997]
[1735183496454,0.00216658,98801.0,98790.0,0.0001714]
[1735183497081,0.161952,98795.0,98790.0,0.0001714]
[1735183497355,0.0806,98793.0,98790.0,0.0001714]
[1735183497596,0.161958,98791.0,98790.0,0.0001714]
[1735183497807,0.16312474,98791.0,98790.0,0.0001714]
[1735183499338,0.16312474,98791.0,98790.0,0.0021714]
[1735183507417,0.21062474,98791.0,98790.0,0.0021714]
[1735183507624,0.209458,98791.0,98790.0,0.0021714]
[1735183508467,0.209458,98791.0,98790.0,0.0001714]